bitfinex/quotes_ETHUSD_20251012
["timestamp","ask_amount","ask_price","bid_price","bid_amount"]
[1760306834287,17.02547888,4133.2,4133.1,1e-08]
[1760306834489,7.08828988,4133.2,4133.1,1e-08]
[1760306835018,6.76528988,4133.2,4133.1,1e-08]
[1760306835241,4.43933288,4133.2,4133.1,1e-08]
[1760306835532,7.28954748,4133.2,4133.1,1e-08]
[1760306836792,5.12520148,4133.2,4133.1,1e-08]
[1760306837622,7.97300548,4133.2,4133.1,1e-08]
[1760306837825,1.92,4133.2,4133.1,1e-08]
[1760306838024,4.185302,4133.6,4133.1,1e-08]
[1760306838225,2.51933288,4133.2,4133.1,1e-08]
[1760306838467,0.0999,4133.2,4133.1,1e-08]
[1760306838731,0.1831,4135.9,4133.1,1e-08]
[1760306838935,2.41901812,4134.0,4133.3,0.6336]
[1760306839139,2.41886018,4134.2,4133.1,2.41948336]
[1760306839300,0.1008,4134.6,4133.4,0.6336]
[1760306839495,2.41894379,4134.1,4133.4,0.6336]
[1760306839839,2.41889188,4134.2,4133.5,0.6336]
[1760306839995,2.41892631,4134.1,4133.5,0.6336]
[1760306840197,2.41892631,4134.1,4133.4,0.6336]
[1760306840397,0.1008,4134.6,4133.1,1e-08]
[1760306840623,2.41884859,4134.2,4133.6,0.6336]
[1760306841026,2.41892859,4134.1,4133.5,0.6336]
[1760306841343,0.1208,4133.6,4133.5,3.05285728]
[1760306841505,0.1208,4133.6,4133.1,0.44100001]
[1760306841506,2.41911352,4133.8,4133.1,1e-08]
[1760306841694,2.41931919,4133.4,4133.1,1e-08]
[1760306841897,4.33943288,4133.2,4133.1,1e-08]
[1760306842096,2.41943288,4133.2,4133.1,1e-08]
[1760306842308,2.52103288,4133.2,4133.1,1e-08]
[1760306843107,0.42851135,4133.7,4133.1,1e-08]
[1760306843337,2.41942789,4133.3,4133.1,1e-08]
[1760306843907,2.41932998,4133.4,4133.1,1e-08]
[1760306844112,2.41939517,4133.3,4133.1,1e-08]
[1760306844615,2.0216,4133.4,4133.1,1e-08]
[1760306844811,2.52091682,4133.4,4133.1,1e-08]
[1760306845018,0.1866,4133.7,4133.1,1e-08]
[1760306845349,4.3392158,4133.6,4133.1,1e-08]
[1760306845511,1.92,4133.6,4133.1,1e-08]
[1760306846005,2.41932097,4133.4,4133.1,1e-08]
[1760306846256,0.4339321,4133.3,4133.1,1e-08]
[1760306846570,0.1016,4135.6,4133.1,1e-08]
[1760306846715,0.1025,4135.2,4133.3,0.2145]
[1760306846917,0.1025,4135.2,4134.3,0.6336]
[1760306847110,0.1025,4135.2,4133.9,2.41902319]
[1760306847310,0.35456563,4135.2,4134.5,0.6336]
[1760306847516,2.940769,4134.9,4133.1,1e-08]
[1760306847723,1.92,4134.8,4133.1,0.63360001]
[1760306847954,0.1849,4133.2,4133.1,1e-08]
[1760306848246,8.13499588,4133.2,4133.1,1e-08]
[1760306848452,9.29373082,4133.2,4133.1,1e-08]
[1760306848813,18.35310982,4133.2,4133.1,0.00200001]
[1760306849440,15.63319682,4133.2,4133.1,0.00200001]
[1760306849818,5.68306782,4133.2,4133.1,0.00200001]
[1760306850014,17.42281182,4133.2,4133.1,0.00200001]
[1760306850350,5.68306782,4133.2,4133.1,0.00200001]
[1760306850515,7.72725782,4133.2,4133.1,0.00200001]
[1760306850716,19.82835782,4133.2,4133.1,0.00200001]
[1760306850920,10.23973282,4133.2,4133.1,0.00200001]
[1760306851831,16.32485482,4133.2,4133.1,0.00200001]
[1760306852014,10.94119982,4133.2,4133.1,0.00200001]
[1760306852712,14.75551982,4133.2,4133.1,0.00200001]
[1760306852934,12.15255382,4133.2,4133.1,0.00200001]
[1760306853529,8.35805082,4133.2,4133.1,0.00200001]
[1760306854131,2.60433288,4133.2,4133.1,0.00200001]
[1760306854360,2.41943288,4133.2,4133.1,0.00200001]
[1760306854933,1.92,4133.2,4133.1,0.00200001]
[1760306855133,4.44353288,4133.2,4133.1,0.00200001]
[1760306855734,14.43745188,4133.2,4133.1,0.00200001]
[1760306855933,16.12322894,4133.2,4133.1,0.00200001]
[1760306856134,10.190868,4133.0,4132.6,1e-08]
[1760306856433,8.0138906,4132.7,4132.6,1e-08]
[1760306856939,8.1179906,4132.7,4132.6,1e-08]
[1760306858162,9.1723436,4132.7,4132.6,1e-08]
[1760306858462,10.33153881,4132.7,4132.6,1e-08]
[1760306859531,5.60302081,4132.7,4132.6,1e-08]
[1760306861664,0.001,4133.4,4132.6,1e-08]
[1760306861860,0.1208,4132.7,4132.6,2.41978416]
[1760306862066,0.001,4133.4,4133.2,0.6336]
[1760306862296,0.001,4133.4,4133.3,3.05297434]
[1760306862463,2.41828327,4135.2,4134.2,0.6336]
[1760306862663,0.006,4135.9,4134.9,2.4184213]
[1760306862973,2.41792376,4135.8,4135.0,0.6336]
[1760306863312,0.006,4135.9,4135.7,0.6336]
[1760306863717,0.006,4135.9,4135.4,2.41814373]
[1760306863866,0.006,4135.9,4135.5,3.05167633]
[1760306864065,0.006,4135.9,4135.7,0.6336]
[1760306864405,0.006,4135.9,4135.8,0.6336]
[1760306864895,0.006,4135.9,4135.8,3.05151189]
[1760306865091,0.006,4135.9,4135.8,0.6336]
[1760306865297,0.006,4135.9,4135.8,3.05151189]
[1760306865493,0.006,4135.9,4135.8,0.6336]
[1760306867507,0.006,4135.9,4134.8,0.4343]
[1760306867724,0.006,4135.9,4135.7,0.6336]
[1760306868014,0.006,4135.9,4135.8,3.05151189]
[1760306868219,0.001,4136.4,4136.3,3.05121961]
[1760306868369,0.001,4136.4,4136.3,3.48551961]
[1760306868594,0.001,4136.8,4136.7,2.41738583]
[1760306868783,0.001,4136.8,4136.7,3.48528583]
[1760306870425,0.006,4136.9,4136.8,3.0509274]
[1760306870625,0.006,4136.9,4136.8,3.4852274]
[1760306870828,1e-08,4137.4,4137.3,3.05063526]
[1760306871029,0.006,4137.9,4137.7,3.0504016]
[1760306871218,0.001,4138.8,4138.3,3.05005119]
[1760306871531,0.001,4138.8,4138.7,3.04981765]
[1760306872024,0.001,4138.8,4138.7,3.48411765]
[1760306872926,0.001,4138.8,4138.7,3.60491765]
[1760306873721,0.005,4139.9,4139.0,0.6336]
[1760306874030,0.005,4139.9,4139.2,0.6336]
[1760306874332,0.005,4139.9,4139.5,0.6336]
[1760306874533,0.005,4139.9,4139.6,2.4156853]
[1760306874830,0.005,4139.9,4139.6,2.8499853]
[1760306875028,0.005,4139.9,4139.7,0.4343]
[1760306875413,0.005,4139.9,4139.5,2.99934331]
[1760306875613,0.005,4139.9,4139.6,2.84996597]
[1760306875803,0.005,4139.9,4139.6,2.8499798]
[1760306875992,0.005,4139.9,4139.8,2.41557563]
[1760306876230,0.005,4140.9,4139.7,0.4343]
[1760306876424,0.005,4141.9,4140.8,0.2259]
[1760306876659,0.005,4141.9,4141.7,0.6336]
[1760306876958,0.28443313,4142.8,4141.7,3.04805279]
[1760306877122,0.28443313,4142.8,4141.9,0.6336]
[1760306877326,0.28443313,4142.8,4141.3,0.6336]
[1760306877641,0.28443313,4142.8,4142.0,0.6336]
[1760306878157,0.28443313,4142.8,4142.2,0.6336]
[1760306878558,0.28443313,4142.8,4142.6,0.6336]
[1760306878761,0.28443313,4142.8,4142.7,3.04748466]
[1760306879127,0.28443313,4142.8,4142.7,3.48178466]
[1760306879763,0.001,4143.1,4143.0,3.04730987]
[1760306880066,0.001,4143.5,4143.4,3.04707685]
[1760306880266,0.001,4143.5,4143.4,0.6336]
[1760306880624,0.001,4143.5,4143.4,1.0679]
[1760306880829,0.001,4143.5,4143.4,3.48137685]
[1760306881066,0.001,4143.5,4142.5,0.4343]
[1760306881248,2.41347685,4143.4,4142.1,0.2259]
[1760306881434,0.001,4143.5,4142.4,2.41401992]
[1760306881633,0.001,4143.5,4143.2,0.6336]
[1760306882164,2.41442304,4143.5,4142.5,0.6336]
[1760306882462,0.001,4143.5,4142.4,2.41405948]
[1760306882660,0.001,4143.5,4142.7,0.6336]
[1760306883064,0.001,4143.5,4142.6,0.6336]
[1760306883444,0.001,4143.5,4142.8,0.6336]
[1760306884265,0.001,4143.5,4143.4,3.04707685]
[1760306884472,0.001,4143.5,4143.4,3.16707685]
[1760306884675,0.001,4143.5,4143.4,0.7536]
[1760306886134,0.001,4143.5,4143.4,1.1879]
[1760306886334,0.001,4143.5,4142.5,0.4343]
[1760306886567,2.41353684,4143.3,4142.9,0.12]
[1760306886867,0.001,4143.5,4143.0,0.4343]
[1760306887050,0.001,4143.5,4142.9,0.12]
[1760306887051,0.001,4143.5,4143.2,0.6336]
[1760306887635,2.1251,4143.5,4143.0,0.6336]
[1760306887881,2.41347685,4143.4,4143.0,0.6336]
[1760306888436,0.1513,4143.3,4141.7,0.4343]
[1760306888670,0.12,4142.8,4142.1,0.12]
[1760306888966,2.61789728,4142.7,4142.1,0.12]
[1760306889181,2.41389728,4142.7,4142.2,0.6336]
[1760306889388,2.41389728,4142.7,4142.1,0.12]
[1760306889389,2.53383341,4142.8,4142.1,0.12]
[1760306889682,0.12,4142.8,4142.1,0.12]
[1760306889981,2.41414183,4142.3,4142.1,0.12]
[1760306890183,2.41382639,4142.8,4141.2,0.4504]
[1760306890338,2.41382639,4142.8,4141.5,0.12]
[1760306890339,2.41433745,4142.0,4141.5,0.12]
[1760306890539,4.33424362,4142.1,4141.6,0.6336]
[1760306890850,2.41429587,4142.0,4141.5,0.12]
[1760306891065,2.41423914,4142.1,4141.6,0.6336]
[1760306891274,0.68683435,4142.1,4140.3,0.2296]
[1760306891442,2.84727566,4142.7,4141.1,0.12]
[1760306891443,4.33451412,4141.7,4141.1,0.12]
[1760306891646,2.41466589,4141.4,4140.5,2.4151177]
[1760306891838,0.12,4141.6,4140.9,0.12]
[1760306892254,2.41462612,4141.5,4140.4,2.41516872]
[1760306892449,2.41452578,4141.6,4140.6,0.6336]
[1760306892691,2.41452578,4141.6,4140.1,0.005]
[1760306892692,2.41499333,4140.8,4140.1,0.005]
[1760306892861,2.0723,4141.5,4140.1,0.005]
[1760306893062,0.24145258,4141.6,4140.1,0.005]
[1760306893371,0.1523,4141.4,4140.1,0.005]
[1760306893558,2.41405964,4142.4,4140.1,0.005]
[1760306893559,2.41478875,4141.2,4140.2,2.64494068]
[1760306893758,0.1116,4141.5,4140.1,0.005]
[1760306893970,1.92,4141.1,4140.1,0.005]
[1760306894178,2.41513874,4140.6,4140.1,0.005]
[1760306894395,1.92,4141.2,4140.1,0.005]
[1760306894594,2.41506285,4140.7,4140.1,0.005]
[1760306894923,2.41443142,4141.8,4140.8,0.6336]
[1760306895049,2.300042,4142.4,4140.3,0.6336]
[1760306895245,2.41451651,4141.7,4140.8,3.04855902]
[1760306895562,2.41453574,4141.6,4140.8,3.04855902]
[1760306895955,0.24145357,4141.6,4140.1,0.005]
[1760306896256,1.92,4141.2,4140.1,0.005]
[1760306896458,1.92,4141.3,4140.1,0.005]
[1760306896669,2.41511024,4140.6,4140.1,0.005]
[1760306897244,1.92,4141.4,4140.1,0.005]
[1760306897447,0.1136,4141.3,4140.3,0.6336]
[1760306897647,1.92,4141.1,4140.1,0.005]
[1760306897844,1.92,4140.9,4140.1,0.005]
[1760306898081,2.41529884,4140.3,4140.1,0.005]
[1760306898279,2.41533762,4140.3,4140.1,0.005]
[1760306898480,2.41534225,4140.2,4140.1,0.005]
[1760306898778,2.41527481,4140.4,4140.1,0.005]
[1760306898985,2.4152956,4140.3,4140.1,0.005]
[1760306899281,2.41522558,4140.4,4140.1,0.005]
[1760306899585,1.92,4140.9,4140.1,0.005]
[1760306899786,2.41534225,4140.2,4140.1,0.005]
[1760306899982,0.1136,4140.8,4140.1,0.005]
[1760306900173,2.41505059,4140.7,4140.1,0.005]
[1760306900370,2.52860068,4140.8,4140.1,0.005]
[1760306900576,2.41517815,4140.5,4140.1,0.005]
[1760306901098,2.41409416,4142.4,4140.1,0.005]
[1760306901099,0.1136,4141.0,4140.1,0.005]
[1760306901391,2.41511118,4140.6,4140.1,0.005]
[1760306901691,2.41518714,4140.5,4140.1,0.005]
[1760306901863,1.92,4140.4,4140.1,0.005]
[1760306902053,2.41512011,4140.6,4140.1,0.005]
[1760306902253,0.12,4140.4,4140.1,0.005]
[1760306902974,0.12,4140.4,4140.1,0.007]
[1760306903389,1.92,4140.2,4140.1,0.007]
[1760306903884,2.52894225,4140.2,4140.1,0.007]
[1760306904087,2.41528992,4140.3,4140.1,0.007]
[1760306904300,2.41505945,4140.7,4140.1,0.007]
[1760306904457,0.12,4140.3,4140.1,0.007]
[1760306904660,2.04,4140.3,4140.1,0.007]
[1760306904862,2.53529993,4140.3,4140.1,0.007]
[1760306905195,2.41529993,4140.3,4140.1,0.007]
[1760306905688,4.44894225,4140.2,4140.1,0.007]
[1760306906288,9.42096925,4140.2,4140.1,0.007]
[1760306906493,9.42096925,4140.2,4140.1,1e-08]
[1760306907367,16.69660925,4140.2,4140.1,1e-08]
[1760306907689,13.16100525,4140.2,4140.1,1e-08]
[1760306907864,9.79575877,4140.2,4140.1,1e-08]
[1760306908068,4.44894225,4140.2,4140.1,1e-08]
[1760306909490,4.44894225,4140.2,4140.1,0.63360001]
[1760306909892,0.1136,4140.2,4140.1,0.63360001]
[1760306910102,2.52894225,4140.2,4140.1,0.63360001]
[1760306910305,2.41534225,4140.2,4140.1,0.63360001]
[1760306910475,1.92,4140.9,4140.1,1e-08]
[1760306910794,2.41534225,4140.2,4140.1,1e-08]
[1760306912571,2.41528834,4140.3,4140.1,1e-08]
[1760306912879,1.92,4140.6,4140.1,1e-08]
[1760306913199,21.50895025,4140.2,4140.1,1e-08]
[1760306913403,11.77654325,4140.2,4140.1,1e-08]
[1760306914112,4.44894225,4140.2,4140.1,1e-08]
[1760306914292,7.89368325,4140.2,4140.1,1e-08]
[1760306914498,8.92457813,4140.2,4140.1,1e-08]
[1760306915403,7.88278413,4140.2,4140.1,1e-08]
[1760306916290,7.61714541,4139.3,4139.2,1e-08]
[1760306916467,4.33586741,4139.3,4139.2,1e-08]
[1760306916674,5.15599324,4139.3,4139.2,1e-08]
[1760306919833,5.15599324,4139.3,4139.1,0.005]
[1760306919834,26.59197878,4139.2,4139.1,1e-08]
[1760306920000,2.4163928,4138.4,4138.3,0.002]
[1760306920198,7.5302848,4138.4,4138.3,0.002]
[1760306920403,6.5845868,4138.4,4138.3,0.002]
[1760306920603,7.48467713,4138.4,4138.3,0.002]
[1760306921002,9.28767713,4138.4,4138.3,0.002]
[1760306921319,9.19067713,4138.4,4138.3,0.002]
[1760306922033,5.35928313,4138.4,4138.3,0.002]
[1760306922186,8.2031838,4138.4,4138.3,0.002]
[1760306922587,9.60827038,4138.0,4137.9,0.002]
[1760306922809,7.05187438,4138.0,4137.9,0.002]
[1760306923119,5.40626884,4138.0,4137.9,0.002]
[1760306923627,7.42943584,4138.0,4137.9,0.002]
[1760306923996,5.40626884,4138.0,4137.9,0.002]
[1760306924318,4.45942638,4138.0,4137.9,0.002]
[1760306925621,13.41410038,4138.0,4137.9,0.002]
[1760306925824,11.34889338,4138.0,4137.9,0.002]
[1760306926417,13.22159338,4138.0,4137.9,0.002]
[1760306926905,11.36599938,4138.0,4137.9,0.002]
[1760306927107,9.44518846,4138.0,4137.9,0.002]
[1760306927301,4.45942638,4138.0,4137.9,0.002]
[1760306927635,7.09265438,4138.0,4137.9,0.002]
[1760306928312,7.09265438,4138.0,4137.5,0.002]
[1760306928313,24.67291301,4137.6,4137.5,1e-08]
[1760306928636,26.59291301,4137.6,4137.5,1e-08]
[1760306928790,22.256053,4137.4,4136.1,0.005]
[1760306929128,2.41767806,4136.2,4136.1,0.005]
[1760306929312,9.20378106,4136.2,4136.1,0.005]
[1760306929634,9.20378106,4136.2,4134.1,0.005]
[1760306929635,1.92,4136.1,4134.1,0.005]
[1760306929928,2.41814827,4135.4,4134.1,0.3515]
[1760306930131,1.92,4135.3,4134.1,2.77040361]
[1760306930421,2.41826272,4135.2,4134.1,0.3515]
[1760306930604,2.54276272,4135.2,4134.1,0.1258]
[1760306930997,2.54276272,4135.2,4134.2,0.6336]
[1760306931628,2.54276272,4135.2,4134.4,0.6336]
[1760306932114,2.54276272,4135.2,4134.2,0.6336]
[1760306932311,2.54276272,4135.2,4134.2,3.05243254]
[1760306932549,2.54276272,4135.2,4134.2,0.6336]
[1760306932721,2.54276272,4135.2,4134.4,0.6336]
[1760306933247,0.1245,4135.2,4134.5,0.6336]
[1760306933418,2.41763632,4136.3,4134.1,0.1258]
[1760306933419,2.0445,4135.8,4134.4,0.458]
[1760306933619,0.1208,4135.2,4134.9,0.6336]
[1760306934648,0.1208,4135.2,4135.1,3.0569212]
[1760306934847,0.1208,4135.2,4135.1,0.6386]
[1760306935351,4.46276272,4135.2,4135.1,0.005]
[1760306937049,2.0445,4135.2,4135.1,0.005]
[1760306937261,4.33826272,4135.2,4135.1,0.007]
[1760306937430,4.46276272,4135.2,4135.1,0.007]
[1760306938452,5.1508546,4135.2,4135.1,0.007]
[1760306938957,8.9807116,4135.2,4135.1,0.007]
[1760306939160,8.5896266,4135.2,4135.1,0.007]
[1760306939325,5.1508546,4135.2,4135.1,0.007]
[1760306939721,7.4832766,4135.2,4135.1,0.007]
[1760306939948,5.1508546,4135.2,4135.1,0.007]
[1760306940439,7.5562766,4135.2,4135.1,0.007]
[1760306940639,5.1508546,4135.2,4135.1,0.007]
[1760306941153,1.92,4135.2,4135.1,0.007]
[1760306941352,4.33826272,4135.2,4135.1,0.007]
[1760306941531,1.92,4135.2,4135.1,0.007]
[1760306942965,22.43635672,4135.2,4135.1,1e-08]
[1760306943142,2.41855515,4134.7,4134.6,0.002]
[1760306943343,26.59460815,4134.7,4134.6,0.002]
[1760306943857,2.41920657,4133.6,4132.1,0.007]
[1760306944028,12.66569288,4133.2,4132.1,0.007]
[1760306944351,11.04765988,4133.2,4133.1,1e-08]
[1760306944556,11.16155988,4133.2,4133.1,1e-08]
[1760306944753,6.80158388,4133.2,4133.1,1e-08]
[1760306945935,2.262,4133.2,4133.1,1e-08]
[1760306946262,1.92,4133.2,4133.1,1e-08]
[1760306946468,0.1161,4135.0,4133.1,1.09160001]
[1760306946763,0.1208,4134.1,4133.5,3.05281214]
[1760306947073,0.1208,4133.8,4133.7,3.05269573]
[1760306948268,0.1208,4133.8,4133.7,0.6336]
[1760306948468,0.2369,4133.8,4133.1,1e-08]
[1760306948668,2.41920478,4133.6,4133.1,1e-08]
[1760306948840,0.1161,4133.8,4133.1,1e-08]
[1760306949240,1.92,4133.7,4133.1,1e-08]
[1760306949472,2.41924834,4133.6,4133.1,1e-08]
[1760306949774,2.41915421,4133.7,4133.1,1e-08]
[1760306949983,0.1161,4133.6,4133.1,1e-08]
[1760306950470,2.41915421,4133.7,4133.1,1e-08]
[1760306950670,2.41908181,4133.8,4133.1,1e-08]
[1760306950853,2.4191655,4133.7,4133.1,1e-08]
[1760306951054,2.41909081,4133.8,4133.1,1e-08]
[1760306951254,2.41903268,4133.9,4133.1,1e-08]
[1760306951465,0.2258,4135.4,4133.3,0.6336]
[1760306951680,0.1208,4134.5,4134.4,3.05228296]
[1760306951842,0.1208,4134.5,4134.4,0.6336]
[1760306952043,0.1208,4134.5,4134.4,3.05233065]
[1760306952243,0.1208,4134.5,4134.4,3.48313065]
[1760306952582,0.1208,4135.4,4134.5,0.6336]
[1760306952873,0.1208,4135.4,4135.3,3.05180424]
[1760306953652,2.41846059,4136.6,4135.3,3.05180424]
[1760306953653,0.001,4136.6,4135.9,0.6336]
[1760306953853,0.001,4136.6,4136.0,3.05139497]
[1760306954053,0.1208,4136.2,4136.0,3.05139497]
[1760306954359,0.1208,4136.5,4136.0,3.48219497]
[1760306954540,0.001,4136.1,4136.0,3.48219497]
[1760306955145,0.1388,4136.1,4134.4,0.4308]
[1760306955346,11.64144342,4135.9,4133.4,2.41931581]
[1760306955576,2.41808649,4135.6,4133.5,0.4308]
[1760306955889,0.001,4136.1,4133.6,1.92]
[1760306956176,0.001,4136.1,4136.0,0.6336]
[1760306956744,2.55803651,4136.1,4136.0,0.6336]
[1760306956983,1.921,4136.1,4136.0,0.6336]
[1760306957478,4.47803651,4136.1,4136.0,0.6336]
[1760306957841,1.921,4136.1,4136.0,0.6336]
[1760306958545,4.33873651,4136.1,4136.0,0.6336]
[1760306958741,1.921,4136.1,4136.0,0.6336]
[1760306958965,1.92,4136.0,4134.6,0.2245]
[1760306959182,0.2118,4134.7,4133.2,2.41943288]
[1760306959488,2.4187597,4134.4,4133.6,2.41917738]
[1760306959647,2.41866385,4134.6,4132.9,0.4308]
[1760306959846,1.92,4134.6,4133.6,2.41917898]
[1760306960058,1.92,4134.5,4133.3,2.41931654]
[1760306960259,2.41893623,4134.1,4133.2,2.41938389]
[1760306960474,2.41885132,4134.2,4133.4,2.41931005]
[1760306960977,2.41783978,4136.0,4132.6,1e-08]
[1760306961283,2.41765173,4136.3,4132.6,1e-08]
[1760306961284,1.92,4134.5,4132.6,1e-08]
[1760306961579,0.1407,4134.4,4132.6,1e-08]
[1760306961878,2.41892333,4134.1,4133.2,2.41938618]
[1760306962269,2.41898445,4134.0,4133.2,2.41938618]
[1760306962582,2.4190626,4133.9,4133.2,0.6336]
[1760306962784,2.4190626,4133.9,4133.2,2.4194283]
[1760306962986,2.41897141,4134.0,4133.3,0.6336]
[1760306963189,2.41938599,4133.3,4133.1,0.00200001]
[1760306963390,2.41943288,4133.2,4133.1,0.00200001]
[1760306963586,4.69203288,4133.2,4133.1,0.00200001]
[1760306964302,10.65656088,4133.2,4133.1,0.00200001]
[1760306964866,9.93900088,4133.2,4133.1,0.00200001]
[1760306965066,20.09860219,4133.2,4133.1,0.00200001]
[1760306965292,18.02100219,4133.2,4133.1,0.00200001]
[1760306965695,16.45232019,4133.2,4133.1,0.00200001]
[1760306966004,10.72112119,4133.2,4133.1,0.00200001]
[1760306966203,28.18392119,4133.2,4133.1,0.00200001]
[1760306966502,19.91954119,4133.2,4133.1,0.00200001]
[1760306967010,8.58087919,4133.2,4133.1,0.00200001]
[1760306967172,10.85324719,4133.2,4133.1,0.00200001]
[1760306967369,5.92786819,4133.2,4133.1,0.00200001]
[1760306967567,0.28891015,4133.8,4133.1,0.00200001]
[1760306967765,0.1407,4133.2,4133.1,0.00200001]
[1760306968083,1.92,4133.6,4133.1,0.00200001]
[1760306968394,2.0607,4133.2,4133.1,0.00200001]
[1760306968712,0.1407,4133.6,4133.1,0.00200001]
[1760306968915,2.41939572,4133.3,4133.1,0.00200001]
[1760306969199,0.28891015,4133.8,4133.1,0.63560001]
[1760306969400,2.41908553,4133.8,4133.1,0.63560001]
[1760306969602,0.1407,4134.5,4133.5,0.6336]
[1760306969807,2.41852486,4134.8,4133.5,0.6336]
[1760306970103,2.41934616,4133.4,4133.1,0.00200001]
[1760306970400,2.41915053,4133.7,4133.1,0.00200001]
[1760306970599,0.1414,4133.3,4133.1,0.00200001]
[1760306970979,0.1414,4134.0,4133.1,0.00200001]
[1760306971503,4.33902319,4133.9,4133.1,0.00200001]
[1760306971804,0.1414,4134.0,4133.1,0.00200001]
[1760306971805,2.41943288,4133.2,4133.1,0.00200001]
[1760306972305,2.56083288,4133.2,4133.1,0.00200001]
[1760306972475,1.92,4133.3,4133.1,0.00200001]
[1760306972801,9.97004388,4133.2,4133.1,0.00060001]
[1760306973104,6.85046988,4133.2,4133.1,0.00060001]
[1760306973828,4.48083288,4133.2,4133.1,0.00060001]
[1760306974317,4.33943288,4133.2,4133.1,0.00060001]
[1760306974801,4.47953288,4133.2,4133.1,0.00060001]
[1760306975403,5.16941787,4133.2,4133.1,0.00060001]
[1760306975720,26.31775365,4133.2,4133.1,0.00060001]
[1760306976613,40.68664065,4133.2,4133.1,0.00060001]
[1760306976923,9.82957,4132.3,4130.1,0.005]
[1760306977233,22.60174367,4131.8,4130.1,0.005]
[1760306977523,4.55505267,4131.8,4130.1,0.005]
[1760306977729,4.48775267,4131.8,4130.4,3.05467029]
[1760306978290,4.48775267,4131.8,4130.4,0.6336]
[1760306978482,1.92,4131.8,4130.7,0.6336]
[1760306978686,0.2135,4132.8,4131.3,0.6336]
[1760306978990,0.2135,4132.8,4130.4,0.6336]
[1760306978991,2.56835267,4131.8,4130.4,0.6336]
[1760306979203,22.25042101,4131.8,4130.4,0.6336]
[1760306979416,22.25042101,4131.8,4130.1,0.005]
[1760306979417,7.75409501,4131.8,4130.1,0.005]
[1760306979613,9.88747901,4131.8,4130.1,0.005]
[1760306979815,9.21306401,4131.8,4130.1,0.005]
[1760306980125,1.92,4131.7,4131.1,1e-08]
[1760306980428,11.20067218,4131.2,4131.1,1e-08]
[1760306980791,4.48870418,4131.2,4131.1,1e-08]
[1760306981123,24.91949118,4131.2,4131.1,1e-08]
[1760306981498,26.34949118,4131.2,4131.1,1e-08]
[1760306981711,11.80026126,4131.2,4131.1,1e-08]
[1760306981910,9.34029718,4131.2,4131.1,1e-08]
[1760306982623,24.176053,4131.1,4130.1,1e-08]
[1760306982820,1.92,4130.2,4130.1,1e-08]
[1760306983023,21.30131825,4130.2,4130.1,1e-08]
[1760306983321,6.86153191,4130.2,4130.1,1e-08]
[1760306983617,7.44626325,4130.2,4130.1,1e-08]
[1760306984022,9.04919025,4130.2,4130.1,1e-08]
[1760306986730,0.1481,4130.2,4130.1,1e-08]
[1760306987029,2.56929025,4130.2,4130.1,1e-08]
[1760306987331,4.48929025,4130.2,4130.1,1e-08]
[1760306987828,5.18032773,4130.2,4130.1,1e-08]
[1760306988196,1.92,4130.2,4130.1,1e-08]
[1760306988406,22.256053,4132.0,4130.1,1e-08]
[1760306988609,1.92,4131.9,4130.1,1e-08]
[1760306988809,1.92,4131.4,4130.1,1e-08]
[1760306989034,2.42119025,4130.2,4130.1,1e-08]
[1760306989235,2.4209485,4130.7,4127.1,2.42798679]
[1760306989236,1.92,4130.6,4127.6,2.42269665]
[1760306989450,24.67741913,4129.9,4127.1,0.005]
[1760306989624,20.353714,4129.7,4127.1,0.005]
[1760306989824,1.92,4129.8,4127.1,0.005]
[1760306989825,2.42198622,4128.9,4127.6,2.4226644]
[1760306990160,1.92,4129.6,4127.7,2.4225999]
[1760306990161,0.1045,4129.6,4127.7,2.4225999]
[1760306990361,2.42232407,4128.3,4127.1,2.42799865]
[1760306990534,0.1045,4128.2,4127.1,0.005]
[1760306990735,2.0245,4128.2,4127.1,0.005]
[1760306991070,4.44686325,4128.2,4127.1,0.005]
[1760306991285,10.130131,4128.1,4127.1,0.005]
[1760306991554,2.42242193,4128.1,4127.1,0.005]
[1760306991760,0.44468633,4128.2,4127.1,0.005]
[1760306991960,0.1045,4128.3,4127.1,0.005]
[1760306992156,1.0735,4129.0,4127.2,0.4717]
[1760306992355,0.1208,4127.6,4127.5,3.05636809]
[1760306992761,0.969,4129.0,4127.3,0.6336]
[1760306992925,2.42254259,4127.9,4127.3,0.6336]
[1760306993128,2.42254259,4127.9,4127.0,0.5386]
[1760306993559,1.92,4127.7,4126.9,0.00381155]
[1760306993728,0.3146,4127.8,4126.9,0.00381155]
[1760306993928,0.099,4127.6,4126.9,0.00381155]
[1760306994132,2.4230676,4127.0,4126.9,0.00381155]
[1760306994331,1.92,4127.3,4126.9,0.00381155]
[1760306994560,2.52172441,4127.6,4126.9,0.00381155]
[1760306994764,0.099,4127.3,4126.9,0.00381155]
[1760306995059,0.3143,4128.7,4127.3,2.4228454]
[1760306995235,0.3143,4128.7,4126.9,0.00381155]
[1760306995236,1.92,4128.6,4127.4,3.05641752]
[1760306995436,1.92,4128.6,4127.5,2.42277256]
[1760306995437,2.4222459,4128.4,4127.5,2.42277256]
[1760306995633,2.42224153,4128.5,4127.1,0.6336]
[1760306995836,2.42241248,4128.2,4127.4,0.6336]
[1760306996152,2.42231138,4128.3,4126.9,0.00381155]
[1760306996349,2.42236895,4128.2,4127.5,0.6336]
[1760306996782,0.969,4129.0,4127.5,0.6336]
[1760306997073,0.969,4129.0,4128.3,0.6336]
[1760306997266,1.92,4128.9,4128.3,0.6336]
[1760306997466,0.969,4129.0,4128.3,0.6336]
[1760306997644,2.42201441,4128.8,4128.1,0.6336]
[1760306997844,1.92,4128.9,4128.1,0.6336]
[1760306998040,0.3143,4128.8,4127.5,0.6336]
[1760306998244,2.42212944,4128.6,4127.8,2.42254884]